[Event "21st RLP-Seniors Open 2024"]
[Site "Altenkirchen Ww"]
[Date "2024.09.05"]
[Round "3.1"]
[White "Boidman, Yuri"]
[Black "Schott, Guido"]
[Result "1-0"]
[Annotator "TA"]
[ECO "B10"]
[WhiteElo "2245"]
[BlackElo "2044"]
[PlyCount "83"]
[EventDate "2024.09.02"]
[EventType "swiss"]
[EventCountry "GER"]
[SourceTitle "playchess.com"]
[Source "ChessBase"]
[SourceQuality "1"]
[TimeControl "40/5400+30:1800+30"]

{[%evp 13,83,-6,-18,-17,-7,-12,-16,-12,0,7,1,12,22,32,37,39,102,84,110,94,108,96,125,123,141,26,70,80,72,0,0,0,0,-104,0,0,0,0,21,26,13,15,115,118,109,119,106,12,24,-35,0,-100,-82,-647,-647,-661,-118,-125,-96,-102,-14,-297,-21,-87,967,940,1506,1184,29992,29991,29992,5402]} 1. e4 {[%emt 0:00:07]} c6 {[%emt 0:00:07]} 2. c4 {[%emt 0:00:08]} d5 {[%emt 0:00:09]} 3. cxd5 {[%emt 0:00:12]} cxd5 {[%emt 0:00:09]} 4. exd5 {[%emt 0:00:09]} Nf6 {[%emt 0:00:21]} 5. Qa4+ {[%emt 0:00:07]} Nbd7 {[%emt 0:02:09]} 6. Nc3 {[%emt 0:01:11]} g6 {[%emt 0:00:23]} 7. Nf3 {[%emt 0:00:07]} Bg7 {[%emt 0:00:32]} 8. Bc4 {[%emt 0:00:12]} O-O {[%emt 0:01:14]} 9. d3 {[%emt 0:00:15]} a6 {[%emt 0:14:20] ...b5 is the strong threat.} 10. Qa3 {[%emt 0:00:15] The position is equal.} Nb6 {[%emt 0:07:43]} 11. Qb3 {[%emt 0:00:18]} Nxc4 {[%emt 0:01:24]} 12. dxc4 {[%emt 0:00:18]} e6 {[%emt 0:00:21]} 13. O-O {[%emt 0:00:38]} exd5 {[%emt 0:00:28]} 14. cxd5 {[%emt 0:00:36]} Bg4 {[%emt 0:07:32]} ({Black should try} 14... b5 $14) 15. Ne5 $16 {[%emt 0:02:43][%cal Of1e1,Bf3e5,Be5c4,Bc4b6][%mdl 32]} Qd6 {[%emt 0:01:48]} 16. Nc4 {[%emt 0:01:37]} Qc7 {[%emt 0:06:43]} 17. Nb6 {[%emt 0:02:33]} Rae8 {[%emt 0:03:51]} 18. Be3 {[%emt 0:02:17]} Bf5 {[%emt 0:08:19] And now ...Ng4 would win.} 19. Ne2 {[%emt 0:06:22]} (19. Rad1 $16) 19... Rxe3 {[%emt 0:10:52]} 20. fxe3 {[%emt 0:00:26]} (20. Qxe3 $2 Ng4 21. Qh3 Qxb6 $19) 20... Ng4 {[%emt 0:00:38][%csl Gg4][%cal Rc7h2]} 21. g3 {[%emt 0:02:33]} ({Better is} 21. Ng3 $16) 21... Re8 $11 {[%emt 0:04:21]} 22. Rf3 {[%emt 0:06:43]} Qe5 {[%emt 0:03:27][%cal Rg4e3]} 23. Rd1 {[%emt 0:24:28]} (23. Rc1 $11) 23... Be4 {[%emt 0:12:17] A strong pair of Bishops.} (23... Nxe3 $17 24. Rd2 Qe4 25. Qxe3 Qb1+ (25... Qxe3+ 26. Rxe3 Rxe3 27. Kf2 $17) 26. Rf1 Rxe3 27. Rxb1 Bxb1) 24. Rf4 {[%emt 0:02:37]} Qh5 {[%emt 0:01:14]} (24... Qxb2 $2 25. Qxb2 Bxb2 26. Rxg4 $18) 25. h4 {[%emt 0:00:13] Qa4 would now be deadly.} g5 {[%emt 0:02:11]} 26. Qa4 {[%emt 0:05:22][%csl LRe4,LRe8]} f5 {[%emt 0:00:46] Threatens to win with ...Bc2.} (26... gxf4 $2 27. Qxe8+ Bf8 28. Nd7 $18 (28. Qxe4 Nh6 $18) (28. exf4 $2 Nf6 $19) (28. Nxf4 Qe5 $18)) 27. Rxg4 {[%emt 0:02:34]} fxg4 {[%emt 0:01:09]} (27... Rf8 $1 $11 {remains equal.} 28. Rxe4 (28. Rxg5 Qxe2 29. Rxg7+ Kh8) 28... fxe4) 28. d6 $16 {[%emt 0:00:51]} Bf3 {[%emt 0:03:11] [#]} (28... gxh4 $2 29. d7 Bc6 30. Qc4+ (30. dxe8=B Bxa4 31. Bxh5 Bxd1 $18) (30. dxe8=Q+ Qxe8 31. Qf4 h3 $18) 30... Kh8 31. d8=Q $18 (31. dxe8=B Qxe8 32. Qf4 h3 $18)) 29. d7 $1 {[%emt 0:03:37] White is more active.} Rd8 {[%emt 0:00:59] [#]} 30. Qc4+ {[%emt 0:05:14] Dancing on a razor blade.} (30. Rc1 $1 $16 {[%cal Rc1c8]} Bc6 (30... Bxe2 $2 31. Rc8 $18) 31. Qc4+ Qf7 (31... Kh8 $2 32. Qe6 $18) 32. Qxg4 (32. hxg5 Bxb2 33. Qxf7+ Kxf7 $11)) 30... Qf7 $1 $11 {[%emt 0:00:20]} 31. Qc7 {[%emt 0:03:04]} (31. hxg5 $2 Qxc4 (31... Bxb2 32. Rd2 $16) 32. Nxc4 Bxe2 $19) (31. Qxf7+ $11 Kxf7 32. Rd2) 31... Qe7 {[%emt 0:01:57]} 32. Qc4+ {[%emt 0:14:22]} (32. Nd5 $11 Bxd5 33. Rxd5 Qxe3+ 34. Kf1 Qf3+ 35. Kg1 Qe3+ 36. Kf1 Qf3+ 37. Kg1 Qe3+) 32... Kh8 $17 {[%emt 0:00:39]} 33. Kf2 {[%emt 0:02:17][%mdl 8192]} (33. Nd5 $17 Qf7 (33... Rxd7 $2 34. Nxe7 Rxd1+ 35. Kf2 $18) (33... Qxd7 34. Ndc3 $11) 34. hxg5) 33... gxh4 $19 {[%emt 0:00:32]} (33... Bxb2 34. hxg5 Bg7 (34... Be5 35. Rc1 $14) 35. Qf4 $11) 34. Rd4 {[%emt 0:04:37]} Qf6 $2 {[%emt 0:01:29]} (34... h3 $19 {has better winning chances.} 35. b4 h2) 35. Qc7 $17 {[%emt 0:01:49]} hxg3+ {[%emt 0:01:40]} 36. Nxg3 {[%emt 0:01:38][%cal Og3f5]} Qh4 {[%emt 0:01:32]} (36... Bc6+ $17 37. Ke1 Qg5 38. Rxg4 Qxe3+ 39. Ne2 Bf6) 37. Rc4 $2 {[%emt 0:02:32][%mdl 8192]} (37. Qf4 $11) 37... Rf8 $2 {[%emt 0:00:41]} (37... Bxb2 38. Kg1 $11) (37... Qh2+ $19 38. Ke1 Bf6 (38... Qg1+ 39. Nf1 $11)) 38. Ke1 {[%emt 0:01:14]} (38. Kg1 $11 {keeps the balance.}) 38... Qh2 $2 {[%emt 0:00:46][%mdl 8192]} (38... Bxb2 $2 39. Qd6 Rd8 40. Rc8 $18) (38... Bc6 $17 39. a4 Bxb2) 39. d8=Q $18 {[%emt 0:00:39][%cal Oc7g7] White threatens Qxg7+! and mate.} (39. d8=B $2 Qg1+ (39... Qxb2 40. Nd7 $17) 40. Nf1 Be4 $19 (40... Bxb2 $2 41. Qd6 $18) (40... Bxb2 $2 41. Qd6 $18)) 39... Qg1+ {[%emt 0:00:17]} 40. Nf1 {[%emt 0:00:32][%cal Oc4f4] Rf4! would kill now.} Bc6 {[%emt 0:01:21] [#]} 41. Qxf8+ $3 {[%emt 0:03:41]} Bxf8 {[%emt 0:00:09]} 42. Qc8 {[%emt 0:01:21] Never resign too early!   Weighted Error Value: White=0.47/Black=0.57.  Loses game:     	White=2     	Black=1      Missed win:     	---       	Black=1      Mistake:       	White=7     	Black=4      Inaccurate:     	---       	Black=5      OK:         	White=7     	Black=9      Best:        	White=4     	Black=3      Strong:       	White=1     	Black=1} (42. Rf4 $142 Bb4+ 43. Rxb4 Kg8 44. Rf4 Qxf1+ 45. Kxf1 (45. Rxf1 Bf3 46. Qe7 h6 47. Nd7 g3 48. Nf6+ Kh8 49. Qh7#) 45... Bb5+ 46. Kg1 Bd7 47. Qxd7 (47. Nxd7 Kg7 48. Qe5+ Kh6 49. Qf6+ Kh5 50. Rf5#) (47. Qd8+ Be8 48. Qe7 Bf7 49. Qxf7+ Kh8 50. Qf8#) 47... h6 48. Qe7 Kh8 49. Rf8#) 1-0

[Event "21st RLP-Seniors Open 2024"]
[Site "Altenkirchen Ww"]
[Date "2024.09.05"]
[Round "3.2"]
[White "Biegel, Thomas"]
[Black "Rooze, Jan"]
[Result "1/2-1/2"]
[Annotator "RC"]
[ECO "E11"]
[WhiteElo "2013"]
[BlackElo "2235"]
[PlyCount "78"]
[EventDate "2024.09.02"]
[EventType "swiss"]
[EventCountry "GER"]
[SourceTitle "playchess.com"]
[Source "ChessBase"]
[SourceQuality "1"]
[TimeControl "40/5400+30:1800+30"]

1. d4 {[%emt 0:00:07]} Nf6 {[%emt 0:00:04]} 2. c4 {[%emt 0:00:04]} e6 {[%emt 0:00:13]} 3. Nf3 {[%emt 0:00:20]} d5 {[%emt 0:00:21]} 4. g3 {[%emt 0:00:19]} Bb4+ {[%emt 0:00:09]} 5. Bd2 {[%emt 0:00:06]} Be7 {[%emt 0:00:04]} 6. Bg2 {[%emt 0:00:08]} O-O {[%emt 0:00:16]} 7. O-O {[%emt 0:01:33]} c6 {[%emt 0:01:38]} 8. Qc2 {[%emt 0:01:53]} Nbd7 {[%emt 0:03:19]} 9. Rd1 {[%emt 0:02:35]} Ne4 {[%emt 0:16:00]} 10. Nc3 {[%emt 0:06:42]} Nxd2 {[%emt 0:03:22]} 11. Nxd2 {[%emt 0:01:23]} f5 {[%emt 0:01:51]} 12. e3 {[%emt 0:01:25]} Kh8 {[%emt 0:02:57]} 13. Ne2 {[%emt 0:01:32]} g5 {[%emt 0:06:32]} 14. Rab1 {[%emt 0:02:56]} a5 {[%emt 0:08:18]} 15. a3 {[%emt 0:01:35]} Bd6 {[%emt 0:01:20]} 16. c5 {[%emt 0:02:38]} Bc7 {[%emt 0:01:51]} 17. f4 {[%emt 0:00:07]} Nf6 {[%emt 0:01:22]} 18. b4 {[%emt 0:07:41]} axb4 {[%emt 0:02:05]} 19. axb4 {[%emt 0:00:02]} Bd7 {[%emt 0:00:13]} 20. Ra1 {[%emt 0:00:19]} Qe7 {[%emt 0:06:47]} 21. Qc3 {[%emt 0:04:53]} Ne4 {[%emt 0:02:41]} 22. Nxe4 {[%emt 0:03:21]} fxe4 {[%emt 0:00:39]} 23. Rxa8 {[%emt 0:02:32]} Rxa8 {[%emt 0:00:03]} 24. Ra1 {[%emt 0:00:35]} Rxa1+ {[%emt 0:07:47]} 25. Qxa1 {[%emt 0:00:02]} gxf4 {[%emt 0:00:06]} 26. Qa8+ {[%emt 0:03:45]} Qd8 {[%emt 0:00:30]} 27. Qxd8+ {[%emt 0:00:17]} Bxd8 {[%emt 0:10:26]} 28. exf4 {[%emt 0:10:29]} b6 {[%emt 0:00:53]} 29. Kf2 {[%emt 0:00:58]} bxc5 {[%emt 0:00:49]} 30. bxc5 {[%emt 0:02:52]} Kg7 {[%emt 0:00:16]} 31. Ke3 {[%emt 0:01:47]} Kf7 {[%emt 0:01:14]} 32. Bf1 {[%emt 0:04:28]} Ba5 {[%emt 0:01:13]} 33. Nc1 {[%emt 0:00:41]} Bc8 {[%emt 0:00:30]} 34. Nb3 {[%emt 0:00:59]} Bc3 {[%emt 0:00:37]} 35. Be2 {[%emt 0:01:42]} Ke7 {[%emt 0:00:31]} 36. Bf1 {[%emt 0:03:03]} h6 {[%emt 0:01:24]} 37. Be2 {[%emt 0:00:29]} Bd7 {[%emt 0:02:21]} 38. Ba6 {[%emt 0:03:04]} Be8 {[%emt 0:00:38]} 39. Be2 {[%emt 0:00:07]} Be1 {[%emt 0:02:32]} 1/2-1/2

[Event "21st RLP-Seniors Open 2024"]
[Site "Altenkirchen Ww"]
[Date "2024.09.05"]
[Round "3.3"]
[White "Meyer, Armin"]
[Black "Sicker, Rolf"]
[Result "1/2-1/2"]
[Annotator "TA"]
[ECO "A11"]
[WhiteElo "2195"]
[BlackElo "1993"]
[PlyCount "35"]
[EventDate "2024.09.02"]
[EventType "swiss"]
[EventCountry "GER"]
[SourceTitle "playchess.com"]
[Source "ChessBase"]
[SourceQuality "1"]
[TimeControl "40/5400+30:1800+30"]

{[%evp 9,35,0,0,5,9,0,0,0,0,0,0,0,18,-20,6,12,12,0,0,-30,-34,-44,-44,-83,-47,-83,-92,-193]} 1. Nf3 {[%emt 0:00:04]} d5 {[%emt 0:01:21]} 2. c4 {[%emt 0:00:12]} e6 {[%emt 0:00:57]} 3. e3 {[%emt 0:01:03]} c6 {[%emt 0:01:48]} 4. Nc3 {[%emt 0:00:12]} Nf6 {[%emt 0:00:55]} 5. b3 {[%emt 0:00:13]} Nbd7 {[%emt 0:01:35]} 6. Qc2 {[%emt 0:00:51]} b6 {[%emt 0:02:29]} 7. cxd5 {[%emt 0:02:53]} exd5 {[%emt 0:02:14]} 8. Bb2 {[%emt 0:01:21] The position is equal.} Bb7 {[%emt 0:03:39]} 9. d4 {[%emt 0:02:25]} Bd6 {[%emt 0:03:53]} 10. Bd3 {[%emt 0:07:14]} Qe7 {[%emt 0:10:57]} 11. Rd1 {[%emt 0:09:22]} Rc8 {[%emt 0:06:15]} 12. O-O {[%emt 0:06:25] Rfe1 is the strong threat.} O-O {[%emt 0:04:26]} 13. Bf5 {[%emt 0:00:56]} Rfe8 {[%emt 0:07:38]} 14. Ne2 {[%emt 0:00:39]} g6 {[%emt 0:01:39]} 15. Bh3 {[%emt 0:00:27]} Ne4 {[%emt 0:01:10]} 16. g3 {[%emt 0:05:39]} f5 {[%emt 0:03:20]} 17. Bg2 {[%emt 0:00:16]} Ba6 {[%emt 0:04:26]} 18. Ne1 {[%emt 0:19:06] Weighted Error Value: White=0.16 (very precise) /Black=0.07 (flawless) .  Mistake:       	White=1     	---        Inaccurate:     	White=4     	Black=2      OK:         	White=4     	Black=4      Best:        	---       	Black=1} (18. Rc1 $17) 1/2-1/2

[Event "21st RLP-Seniors Open 2024"]
[Site "Altenkirchen Ww"]
[Date "2024.09.05"]
[Round "3.4"]
[White "Bohnstorff, Michael"]
[Black "Heck, Norbert"]
[Result "1/2-1/2"]
[Annotator "RC"]
[ECO "A48"]
[WhiteElo "1998"]
[BlackElo "2112"]
[PlyCount "29"]
[EventDate "2024.09.02"]
[EventType "swiss"]
[EventCountry "GER"]
[SourceTitle "playchess.com"]
[Source "ChessBase"]
[SourceQuality "1"]
[TimeControl "40/5400+30:1800+30"]

1. d4 {[%emt 0:00:14]} Nf6 {[%emt 0:00:11]} 2. Nf3 {[%emt 0:00:32]} g6 {[%emt 0:00:09]} 3. Bf4 {[%emt 0:01:35]} Bg7 {[%emt 0:00:08]} 4. Nbd2 {[%emt 0:01:36]} d5 {[%emt 0:02:15]} 5. e3 {[%emt 0:00:16]} O-O {[%emt 0:00:09]} 6. h3 {[%emt 0:00:33]} c5 {[%emt 0:00:36]} 7. Be2 {[%emt 0:01:57]} Nc6 {[%emt 0:00:25]} 8. c3 {[%emt 0:00:55]} Qb6 {[%emt 0:02:23]} 9. Qb3 {[%emt 0:07:03]} c4 {[%emt 0:05:47]} 10. Qa3 {[%emt 0:01:46]} Re8 {[%emt 0:11:48]} 11. b3 {[%emt 0:06:30]} cxb3 {[%emt 0:00:20]} 12. axb3 {[%emt 0:00:26]} Ne4 {[%emt 0:04:41]} 13. Nxe4 {[%emt 0:03:46]} dxe4 {[%emt 0:00:06]} 14. Nd2 {[%emt 0:00:24]} e5 {[%emt 0:01:30]} 15. Nc4 {[%emt 0:02:59]} 1/2-1/2

[Event "21st RLP-Seniors Open 2024"]
[Site "Altenkirchen Ww"]
[Date "2024.09.05"]
[Round "3.5"]
[White "Walther, Reinhard"]
[Black "Geyer, Bernhard"]
[Result "0-1"]
[Annotator "TA"]
[ECO "A45"]
[WhiteElo "1983"]
[BlackElo "2096"]
[PlyCount "34"]
[EventDate "2024.09.02"]
[EventType "swiss"]
[EventCountry "GER"]
[SourceTitle "playchess.com"]
[Source "ChessBase"]
[SourceQuality "1"]
[TimeControl "40/5400+30:1800+30"]

{[%evp 9,34,39,37,32,68,20,47,0,0,-129,-146,-340,-350,-407,-416,-403,-381,-581,-502,-568,-557,-560,-571,-565,-564,-610,-594]} 1. d4 {[%emt 0:00:04]} Nf6 {[%emt 0:00:15]} 2. Bg5 {[%emt 0:00:15]} d6 {[%emt 0:00:49]} 3. Nc3 {[%emt 0:01:55]} Nbd7 {[%emt 0:00:23]} 4. e4 {[%emt 0:03:35]} c5 {[%emt 0:04:02]} 5. Nf3 {[%emt 0:03:46]} cxd4 {[%emt 0:01:45]} 6. Qxd4 {[%emt 0:01:28]} a6 {[%emt 0:01:03]} 7. Rd1 {[%emt 0:07:46]} (7. Bxf6 $14 {feels stronger.} Nxf6 8. O-O-O) 7... e5 {[%emt 0:02:28]} 8. Qa4 {[%emt 0:02:51]} (8. Qe3 $1 $14) 8... Rb8 $1 $11 {[%emt 0:02:45]} 9. Bd3 {[%emt 0:06:33]} (9. Bxf6 $11 Qxf6 10. Nd5) 9... b5 $17 {[%emt 0:01:16]} 10. Qb3 {[%emt 0:00:15] [#] Loses the game.} (10. Bxf6 $17 {was called for.} gxf6 11. Nxb5 axb5 12. Bxb5) 10... Nc5 $19 {[%emt 0:05:08]} 11. Bxf6 {[%emt 0:00:40]} gxf6 {[%emt 0:01:38]} 12. Qb4 {[%emt 0:02:53]} d5 $1 {[%emt 0:02:22] aiming for ...Nxd3+.} 13. Bxb5+ {[%emt 0:02:14]} (13. O-O $142 Nxd3 14. Qb3) 13... axb5 {[%emt 0:00:35] Black is clearly winning.} 14. Nxd5 {[%emt 0:06:18] [#]} Nd3+ $1 {[%emt 0:02:10][%mdl 512]} 15. Rxd3 {[%emt 0:00:13] Qc3 would now be deadly.} Bxb4+ {[%emt 0:00:09]} 16. Nxb4 {[%emt 0:00:07]} Qa5 {[%emt 0:00:35]} 17. c3 {[%emt 0:00:14]} Bb7 {[%emt 0:00:21] Weighted Error Value: White=0.77/Black=0.06 (flawless) .  Loses game:     	White=1     	---        Mistake:       	White=4     	---        Inaccurate:     	---       	Black=2      OK:         	White=2     	Black=3      Best:        	---       	Black=2      Strong:       	---       	Black=2      Brilliant:      	---       	Black=1} 0-1

[Event "21st RLP-Seniors Open 2024"]
[Site "Altenkirchen Ww"]
[Date "2024.09.05"]
[Round "3.7"]
[White "Siebenhaar, Erich"]
[Black "Kripp, Wolfgang"]
[Result "1/2-1/2"]
[Annotator "TA"]
[ECO "D00"]
[WhiteElo "2087"]
[BlackElo "1980"]
[PlyCount "28"]
[EventDate "2024.09.02"]
[EventType "swiss"]
[EventCountry "GER"]
[SourceTitle "playchess.com"]
[Source "ChessBase"]
[SourceQuality "1"]
[TimeControl "40/5400+30:1800+30"]

{[%evp 9,28,2,14,11,10,8,11,0,12,8,16,16,20,-8,-1,-34,-21,-29,-60,-55,-43]} 1. Nc3 {[%emt 0:00:04]} d5 {[%emt 0:01:28]} 2. d4 {[%emt 0:00:20]} Nf6 {[%emt 0:00:32]} 3. Bf4 {[%emt 0:00:08]} Bf5 {[%emt 0:00:35]} 4. e3 {[%emt 0:00:16]} e6 {[%emt 0:01:55]} 5. f3 {[%emt 0:00:28]} Bd6 {[%emt 0:07:38]} 6. g4 {[%emt 0:02:13]} Bxf4 {[%emt 0:01:59]} 7. exf4 {[%emt 0:00:08]} Bg6 {[%emt 0:00:19]} 8. h4 {[%emt 0:00:41] Black must now prevent h5. The position is equal.} h5 {[%emt 0:00:59] [#]} 9. f5 $1 {[%emt 0:03:30]} exf5 {[%emt 0:09:34]} 10. g5 {[%emt 0:00:07]} Ng8 {[%emt 0:05:00]} 11. Qe2+ {[%emt 0:02:18][%mdl 1024] White has compensation.} Ne7 {[%emt 0:00:46]} 12. Qb5+ {[%emt 0:00:21]} Nbc6 {[%emt 0:01:23] Threatening ...a6.} 13. O-O-O {[%emt 0:00:09]} Qd6 {[%emt 0:03:19]} 14. Nge2 {[%emt 0:09:05]} O-O-O {[%emt 1:02:03] Weighted Error Value: White=0.08 (flawless) /Black=0.03 (flawless) .  Inaccurate:     	White=2     	---        OK:         	White=2     	Black=6      Best:        	---       	Black=1      Brilliant:      	White=1     	---} 1/2-1/2

[Event "21st RLP-Seniors Open 2024"]
[Site "Altenkirchen Ww"]
[Date "2024.09.05"]
[Round "3.9"]
[White "Vautrin, Stefan"]
[Black "Meyer, Dieter"]
[Result "0-1"]
[Annotator "TA"]
[ECO "A01"]
[WhiteElo "2074"]
[BlackElo "1917"]
[PlyCount "97"]
[EventDate "2024.09.02"]
[EventType "swiss"]
[EventCountry "GER"]
[SourceTitle "playchess.com"]
[Source "ChessBase"]
[SourceQuality "1"]
[TimeControl "40/5400+30:1800+30"]

{[%evp 9,97,34,43,21,25,26,24,20,41,-33,-35,-88,-48,-51,-25,-9,-12,-79,-93,-55,17,25,15,18,41,0,97,84,83,95,94,91,184,187,214,197,266,75,65,72,48,52,177,-11,131,0,0,-39,34,0,134,69,95,18,11,8,17,27,116,21,622,628,627,615,731,51,105,0,0,0,1005,-2,2112,411,832,0,0,0,0,0,0,-44,-60,-304,-333,-29996,-29997,-29997,-29998,-29998]} 1. b3 {[%emt 0:00:20]} Nc6 {[%emt 0:00:42]} 2. d4 {[%emt 0:01:49]} e6 {[%emt 0:01:03]} 3. Nf3 {[%emt 0:00:57]} Nf6 {[%emt 0:04:23]} 4. e3 {[%emt 0:01:39]} b6 {[%emt 0:02:51]} 5. Bb2 {[%emt 0:08:13]} Bb7 {[%emt 0:04:15]} 6. Nbd2 {[%emt 0:01:30]} Be7 {[%emt 0:01:51]} 7. a3 {[%emt 0:02:32]} O-O {[%emt 0:01:55]} 8. Bd3 {[%emt 0:00:45] White has an edge.} Rc8 {[%emt 0:04:44] [#]} 9. g4 {[%emt 0:07:54]} Nxg4 $15 {[%emt 0:08:12]} 10. h3 {[%emt 0:03:07]} (10. Rg1 $15 f5 11. h3) 10... Nh6 {[%emt 0:07:10]} 11. Rg1 {[%emt 0:01:58][%cal Od4d5] Black must now prevent d5!} g6 {[%emt 0:06:45]} 12. Qe2 {[%emt 0:02:40][%cal Oh3h4]} Bf6 {[%emt 0:10:15]} 13. Ne4 {[%emt 0:04:47]} (13. h4 $11 {remains equal.}) 13... Bg7 $17 {[%emt 0:00:44]} 14. h4 {[%emt 0:04:47][%cal Bh3h4,Bh4h5][%mdl 32]} f5 {[%emt 0:06:38]} (14... Na5 $15 15. h5 Bxe4 16. Bxe4 d5) 15. Neg5 $11 {[%emt 0:01:13][%cal Oh4h5][%mdl 1024] White has compensation.} Ng4 {[%emt 0:00:28]} 16. O-O-O $1 {[%emt 0:02:09]} Qe7 {[%emt 0:04:48]} 17. Nh3 {[%emt 0:05:43][%cal Oh4h5]} d5 {[%emt 0:09:03] [#]} (17... e5 $11 {keeps the balance.}) 18. h5 $1 {[%emt 0:07:51]} e5 {[%emt 0:04:19]} 19. dxe5 {[%emt 0:00:34]} (19. Nxe5 {feels hotter.} Ncxe5 20. dxe5 Bxe5 21. hxg6 hxg6 22. Nf4) 19... Ncxe5 {[%emt 0:00:52]} 20. Nxe5 {[%emt 0:01:44]} Nxe5 {[%emt 0:00:21]} (20... Bxe5 $16 {is a better defense.} 21. hxg6 hxg6 (21... Bxb2+ $2 22. Kxb2 h6 23. Kb1 $18)) 21. hxg6 $18 {[%emt 0:00:57]} hxg6 {[%emt 0:01:07]} 22. Nf4 $1 {[%emt 0:01:57]} g5 {[%emt 0:02:44]} (22... Qd6 $142 23. Ba6 (23. Bxe5 Qxe5 24. Qf3 Qb2+ 25. Kd2 c5 $18) 23... Bxa6 24. Qxa6 c6 25. Qxa7 (25. Bxe5 Qxe5 26. Nxg6 Qb2+ 27. Kd2 Rce8 $16) 25... Rf6 26. Qxb6 Ng4 27. Bxf6 Qxa3+ 28. Kd2 Bxf6) 23. Nh5 $2 {[%emt 0:04:11]} (23. Qh5 $1 $18 {and the rest is easy.} Nxd3+ (23... gxf4 $2 24. Bxf5 Rxf5 25. Qxf5 $18) 24. Rxd3 Bxb2+ 25. Kxb2) 23... Nxd3+ $16 {[%emt 0:03:51]} 24. Qxd3 {[%emt 0:05:12]} (24. Rxd3 Bxb2+ 25. Kxb2 Ba6 $17) 24... Bxb2+ {[%emt 0:00:12]} 25. Kxb2 {[%emt 0:00:06] f4 is the strong threat.} c5 {[%emt 0:02:38]} (25... Rf7 $1 $14) 26. Rde1 $2 {[%emt 0:06:35]} (26. f4 $18 c4 (26... g4 $2 27. Rxg4+ fxg4 28. Qg6+ Kh8 29. Rh1 $18) 27. bxc4 (27. Rxg5+ $2 Qxg5 28. Qd4 Qg4 $19) (27. Qd4 g4 $11) 27... dxc4 28. Qd7 (28. Rxg5+ $2 Qxg5 29. Qd7 Qg6 $19) (28. Qc3 g4 $18)) 26... a5 {[%emt 0:03:25]} (26... Rf7 $11) 27. Qd1 {[%emt 0:01:31]} (27. Qd2 $1 $16 {[%cal Oe3e4]} c4 28. Qd4 cxb3 29. Qf4 (29. cxb3 Rc6 $14) 29... Rxc2+ 30. Kxb3 Rc3+ 31. Kxc3 Qxa3+ 32. Kd2 Qb2+ 33. Kd1 Qb3+ 34. Kd2 Qa2+ 35. Kd1 Qb3+ 36. Kd2 Qb2+ 37. Kd1 Qb1+ 38. Kd2 Qb2+) 27... Kf7 $11 {[%emt 0:04:33]} 28. Ka2 {[%emt 0:12:59][%cal Oh5f4]} Rg8 {[%emt 0:00:45]} (28... a4 $15) 29. Ng3 {[%emt 0:00:54]} (29. Nf4 $5) 29... Qe5 {[%emt 0:00:37]} (29... Qe6 $11) 30. Qh5+ {[%emt 0:00:45]} (30. Rh1 $16) 30... Ke6 {[%emt 0:01:08]} 31. f4 {[%emt 0:02:41]} (31. Qh7 $1 $16 {[%cal Rh7b7]} Qg7 32. Qxf5+ Kd6 33. Rh1) 31... Qf6 $1 {[%emt 0:00:40] Dancing on a razor blade.} 32. fxg5 {[%emt 0:00:15]} Rxg5 {[%emt 0:00:22]} 33. Qh7 {[%emt 0:00:57]} Rg7 {[%emt 0:00:15]} (33... Qg7 $1 $11 34. Qh2 Qh8) 34. Qh3 {[%emt 0:00:09]} (34. Qh2 $1 $16 Rgg8 35. Ref1) 34... Rf8 $2 {[%emt 0:01:44][%mdl 8192]} (34... c4 $11 35. Ne2 Rxg1 (35... cxb3+ 36. Kxb3 Rxg1 37. Rxg1 $11) 36. Rxg1 Rh8) 35. Nh5 $18 {[%emt 0:02:32][%csl LRf6,LRg7]} Rxg1 {[%emt 0:01:06]} 36. Rxg1 {[%emt 0:00:57]} Qc3 {[%emt 0:00:42]} 37. Nf4+ $2 {[%emt 0:00:47]} (37. Qh2 $18 {Strongly threatening Rg6+.} Rh8 38. Rg6+ (38. Rg7 Rxh5 39. Rg6+ Kf7 $11) 38... Kd7 39. Qd6+ (39. Rxb6 Kc8 $11) 39... Kc8 40. Kb1 Qe1+ 41. Kb2) 37... Kd7 $14 {[%emt 0:00:27] [#]} 38. Qh7+ {[%emt 0:01:16]} ({White should play} 38. Kb1 $1 $16 {Threatens to win with Qh7+.} Qh8 39. Qf3) 38... Kc8 $11 {[%emt 0:00:06]} 39. Kb1 {[%emt 0:00:24]} a4 $2 {[%emt 0:00:53][%mdl 8192]} (39... Qxe3 $11 40. Rg7 Qxf4 41. Rxb7 Qd6) 40. Qe7 $2 {[%emt 0:00:46]} (40. bxa4 Qh8 41. Qxh8 Rxh8 $16) ({Better is} 40. Rg7 $18 {Intending Rc7+ and mate.} Qxg7 41. Qxg7) 40... Rh8 $2 {[%emt 0:00:20][%mdl 8192]} (40... Qf6 $11 41. Qxf6 Rxf6) 41. bxa4 {[%emt 0:17:43]} (41. Ne2 $142 Qe1+ 42. Rxe1) 41... Bc6 {[%emt 0:04:38] [#]} (41... Kb8 $142 42. Ne2 Qxa3) 42. Qe6+ $2 {[%emt 0:05:21]} (42. Ne2 $1 $18 {[%cal Re2c3]} Qxa3 43. Qf6 Qb4+ 44. Kc1) 42... Kb7 {[%emt 0:01:46]} 43. Nxd5 {[%emt 0:03:25]} Qxa3 $40 {[%emt 0:00:43][%mdl 128] Black attacks.} 44. Qf7+ {[%emt 0:03:55]} Ka6 {[%emt 0:01:01] aiming for ...Rh4.} 45. Nc7+ {[%emt 0:00:26]} Ka5 {[%emt 0:00:26]} 46. Qf6 {[%emt 0:00:46] Prevents Rh4.} (46. Nd5 $15 Bxd5 (46... Qxa4 47. Qa7+ Kb5 48. Nc3+ Kb4 49. Nxa4 Bxa4 50. Qxb6+ Kc4 51. Rf1) 47. Qxd5) 46... Rh2 $19 {[%emt 0:02:54]} ({Not} 46... Qxe3 47. Qxc6 Qxg1+ 48. Ka2 $11) 47. Qxc6 {[%emt 0:01:32]} (47. Qb2 $19 Qxa4 (47... Qxe3 $2 48. Rf1 $19) 48. Qc3+ Qb4+ 49. Qxb4+ Kxb4 50. Rg6) 47... Qb4+ {[%emt 0:00:48]} 48. Kc1 {[%emt 0:00:34]} Qd2+ {[%emt 0:00:22]} 49. Kb1 {[%emt 0:03:15] Weighted Error Value: White=1.01/Black=0.49.  Loses game:     	White=1     	Black=3      Missed win:     	White=3     	---        Mistake:       	White=8     	Black=10     Inaccurate:     	White=4     	Black=3      OK:         	White=10    	Black=9      Best:        	White=1     	Black=8      Strong:       	White=2     	Black=1} 0-1